bitfinex-derivatives/quotes_BTCF0:USTF0_20260106
["timestamp","ask_amount","ask_price","bid_price","bid_amount"]
[1767663666105,0.09727927,94027.0,94018.0,0.010636]
[1767663666607,0.00930045,94031.0,94018.0,0.010636]
[1767663667007,0.00930045,94031.0,94020.0,0.010636]
[1767663667395,0.09727927,94033.0,94023.0,0.010636]
[1767663667592,0.00930045,94036.0,94020.0,0.09780132]
[1767663667797,0.09727927,94038.0,94020.0,0.09780132]
[1767663668605,0.10657972,94038.0,94020.0,0.09780132]
[1767663671412,0.10657972,94038.0,94025.0,0.010635]
[1767663672911,0.00930045,94037.0,94029.0,0.010635]
[1767663676415,0.00930045,94037.0,94031.0,0.010635]
[1767663676915,0.09727927,94038.0,94031.0,0.010635]
[1767663677109,0.18771927,94043.0,94031.0,0.010635]
[1767663677310,0.09044,94043.0,94031.0,0.010635]
[1767663677510,0.09974045,94043.0,94031.0,0.010635]
[1767663677713,0.00212656,94049.0,94034.0,0.010634]
[1767663677907,0.09044,94050.0,94041.0,0.010634]
[1767663678313,0.00930045,94053.0,94041.0,0.010634]
[1767663678610,0.00930045,94051.0,94038.0,0.010634]
[1767663679609,0.00930045,94050.0,94030.0,0.09780132]
[1767663679815,0.09044,94049.0,94030.0,0.09780132]
[1767663680409,0.00930045,94050.0,94030.0,0.10258729]
[1767663680617,0.09044,94049.0,94039.0,0.010634]
[1767663681115,0.00930045,94050.0,94039.0,0.010634]
[1767663681313,0.09044,94049.0,94039.0,0.010634]
[1767663682016,0.09974045,94049.0,94039.0,0.010634]
[1767663683622,0.00930045,94046.0,94033.0,0.010635]
[1767663685124,0.00930045,94046.0,94030.0,0.09780132]
[1767663685125,0.00930045,94046.0,94035.0,0.010634]
[1767663686125,0.00930045,94046.0,94030.0,0.09780132]
[1767663687723,0.00930045,94046.0,94035.0,0.010634]
[1767663688028,0.00930045,94046.0,94030.0,0.09780132]
[1767663688221,0.00930045,94046.0,94038.0,0.010634]
[1767663689422,0.00930045,94046.0,94030.0,0.09780132]
[1767663690824,0.00930045,94046.0,94039.0,0.010634]
[1767663691425,0.09727927,94047.0,94039.0,0.010634]
[1767663691624,0.10410506,94049.0,94039.0,0.010634]
[1767663692125,0.01350556,94048.0,94036.0,0.010634]
[1767663693315,0.01350556,94048.0,94038.0,0.010634]
[1767663697442,0.01350556,94048.0,94040.0,0.010634]
[1767663697745,0.01350556,94048.0,94030.0,0.10843632]
[1767663697935,0.01350556,94048.0,94040.0,0.010634]
[1767663700541,0.01350556,94048.0,94037.0,0.010634]
[1767663701946,0.01350556,94048.0,94039.0,0.010634]
[1767663703044,0.01350556,94047.0,94027.0,0.09698606]
[1767663703245,0.01350556,94047.0,94035.0,0.010634]
[1767663703246,0.01350556,94046.0,94035.0,0.010634]
[1767663703452,0.01350556,94046.0,94032.0,0.010635]
[1767663703950,0.01350556,94042.0,94026.0,0.010635]
[1767663704153,0.01350556,94042.0,94030.0,0.09780132]
[1767663704650,0.01350556,94042.0,94028.0,0.010635]
[1767663706050,0.11122898,94037.0,94021.0,0.09044]
[1767663706252,0.01350556,94035.0,94022.0,0.010636]
[1767663706551,0.09772342,94036.0,94022.0,0.010636]
[1767663707450,0.01350556,94038.0,94022.0,0.010636]
[1767663708742,0.01350556,94038.0,94021.0,0.09044]
[1767663708944,0.01350556,94038.0,94026.0,0.010635]
[1767663711149,0.01350556,94037.0,94026.0,0.010635]
[1767663711355,0.01350556,94037.0,94023.0,0.010636]
[1767663712354,0.01350556,94033.0,94021.0,0.09044]
[1767663712549,0.01350556,94032.0,94021.0,0.09044]
[1767663714856,0.01350556,94032.0,94019.0,0.01276324]
[1767663715558,0.01350556,94032.0,94019.0,0.00212724]
[1767663717056,0.01310956,94026.0,94015.0,0.010637]
[1767663717950,0.0934145,94027.0,94015.0,0.010637]
[1767663720363,0.0934145,94027.0,94014.0,0.101077]
[1767663720661,0.0934145,94027.0,94015.0,0.010637]
[1767663720868,0.01310956,94030.0,94014.0,0.09044]
[1767663721462,0.01310956,94030.0,94014.0,0.101077]
[1767663722961,0.010635,94029.0,94014.0,0.09044]
[1767663723265,0.01257809,94028.0,94014.0,0.09044]
[1767663723458,0.01257809,94026.0,94014.0,0.09044]
[1767663723655,0.01257809,94022.0,94005.0,0.010638]
[1767663724065,0.02321409,94022.0,94007.0,0.010637]
[1767663724255,0.09577008,94023.0,94007.0,0.010637]
[1767663724860,0.09577008,94023.0,94004.0,0.0908759]
[1767663725163,0.02321409,94025.0,94004.0,0.0908759]
[1767663725164,0.01257809,94025.0,94009.0,0.010637]
[1767663726269,0.010636,94024.0,94009.0,0.010637]
[1767663726662,0.02321409,94024.0,94006.0,0.010638]
[1767663726965,0.01257809,94023.0,94006.0,0.010638]
[1767663727767,0.01257809,94023.0,94004.0,0.1881079]
[1767663729166,0.01257809,94023.0,94008.0,0.010637]
[1767663729557,0.01257809,94026.0,94004.0,0.187672]
[1767663729767,0.010636,94025.0,94004.0,0.187672]
[1767663730270,0.010636,94025.0,94010.0,0.010637]
[1767663730569,0.02321409,94025.0,94010.0,0.010637]
[1767663731471,0.010635,94027.0,94011.0,0.010637]
[1767663731667,0.01257809,94026.0,94011.0,0.010637]
[1767663732166,0.010636,94025.0,94008.0,0.107869]
[1767663732370,0.010636,94025.0,94004.0,0.09044]
[1767663732371,0.01257809,94029.0,94012.0,0.010637]
[1767663732762,0.10834817,94029.0,94012.0,0.010637]
[1767663732964,0.01257809,94028.0,94012.0,0.010637]
[1767663734367,0.010635,94027.0,94009.0,0.010637]
[1767663734873,0.02321309,94027.0,94009.0,0.010637]
[1767663737273,0.01257809,94026.0,94009.0,0.010637]
[1767663738172,0.010636,94025.0,94009.0,0.010637]
[1767663738375,0.01257809,94026.0,94005.0,0.097232]
[1767663739175,0.02321409,94022.0,94005.0,0.097232]
[1767663740376,0.09577008,94025.0,94006.0,0.010638]
[1767663740676,0.0001595,94031.0,94005.0,0.097232]
[1767663740677,0.010636,94020.0,94005.0,0.010638]
[1767663740877,0.010636,94020.0,94004.0,0.09044]
[1767663741779,0.10834817,94017.0,94000.0,0.00012662]
[1767663741963,0.02321509,94016.0,94000.0,0.00012662]
[1767663742166,0.10834817,94015.0,94000.0,0.00012662]
[1767663742876,0.10834817,94015.0,94000.0,0.01076462]
[1767663744278,0.010637,94016.0,94000.0,0.01076462]
[1767663744881,0.01257809,94018.0,94000.0,0.01076462]
[1767663745077,0.01257809,94018.0,94002.0,0.010638]
[1767663747678,0.010636,94017.0,94002.0,0.010638]
[1767663748176,0.10640708,94013.0,94000.0,0.00012662]
[1767663748376,0.01257809,94016.0,94000.0,0.01076462]
[1767663748877,0.01257809,94016.0,94002.0,0.010638]
[1767663749282,0.02321509,94016.0,94000.0,0.00012662]
[1767663749779,0.010637,94014.0,94000.0,0.00012662]
[1767663751881,0.01257809,94016.0,94000.0,0.00012662]
[1767663752069,0.01087731,94014.0,94000.0,0.00012662]
[1767663755387,0.01087731,94012.0,94000.0,0.00012662]
[1767663755684,0.010637,94008.0,94000.0,0.00012662]
[1767663756581,0.02321717,94008.0,94000.0,0.00012662]
[1767663756787,0.010638,94000.0,93990.0,0.09044]
[1767663756986,0.01087731,94001.0,93990.0,0.09044]
[1767663757575,0.01087731,93995.0,93983.0,0.09044]
[1767663757784,0.09341269,93996.0,93983.0,0.09044]
[1767663757785,0.0109551,93994.0,93983.0,0.09044]
[1767663758485,7.779e-05,93994.0,93985.0,0.01064]
[1767663759079,7.779e-05,93994.0,93983.0,0.09044]
[1767663759080,0.0109551,93994.0,93983.0,0.09044]
[1767663759687,0.01087731,93990.0,93978.0,0.010641]
[1767663759885,0.01087731,93986.0,93969.0,0.09048]
[1767663760183,0.01087731,93982.0,93969.0,0.010642]
[1767663760382,0.00011285,93985.0,93972.0,0.010641]
[1767663766094,0.01075285,93985.0,93968.0,0.010642]
[1767663766275,0.01099016,93985.0,93966.0,0.09048]
[1767663766782,0.01099016,93985.0,93970.0,0.09793576]
[1767663767086,0.01099016,93985.0,93959.0,0.0021286]
[1767663767087,0.01087731,93979.0,93963.0,0.010642]
[1767663767285,7.454e-05,93978.0,93963.0,0.010642]
[1767663767679,7.454e-05,93978.0,93965.0,0.010642]
[1767663768693,7.454e-05,93978.0,93963.0,0.00992304]
[1767663768887,7.454e-05,93978.0,93964.0,0.010642]
[1767663769483,7.454e-05,93978.0,93961.0,0.010643]
[1767663769688,0.01071554,93978.0,93960.0,0.10774854]
[1767663770092,0.01071554,93978.0,93961.0,0.00967427]
[1767663770301,0.01071554,93978.0,93962.0,0.010643]
[1767663770504,7.454e-05,93978.0,93962.0,0.010643]
[1767663770684,7.454e-05,93978.0,93962.0,0.02031727]
[1767663771499,7.454e-05,93978.0,93965.0,0.010642]
[1767663772005,7.454e-05,93978.0,93962.0,0.00967427]
[1767663772199,7.454e-05,93978.0,93963.0,0.010642]
[1767663773100,7.454e-05,93978.0,93973.0,0.010641]
[1767663773292,0.09048,93983.0,93974.0,0.010641]
[1767663773901,0.09048,93983.0,93971.0,0.010642]
[1767663774402,5.208e-05,93982.0,93970.0,0.09793576]
[1767663774593,5.208e-05,93982.0,93970.0,0.10857776]
[1767663775302,5.208e-05,93982.0,93972.0,0.010641]
[1767663779104,5.208e-05,93982.0,93966.0,0.0093003]
[1767663779311,0.010641,93979.0,93963.0,0.010642]
[1767663779608,5.208e-05,93978.0,93963.0,0.010642]
[1767663781104,0.01008063,93978.0,93963.0,0.010642]
[1767663781302,0.01002855,93977.0,93963.0,0.010642]
[1767663781906,0.09964057,93978.0,93963.0,0.010642]
[1767663782299,0.010642,93972.0,93959.0,0.0926086]
[1767663782499,0.010642,93972.0,93959.0,0.0021286]
[1767663782793,5.208e-05,93971.0,93959.0,0.0021286]
[1767663783510,0.01002855,93965.0,93945.0,0.00809515]
[1767663783700,5.208e-05,93964.0,93946.0,0.00987518]
[1767663783904,5.208e-05,93963.0,93946.0,0.10960921]
[1767663784107,0.09793576,93960.0,93947.0,0.010644]
[1767663784311,0.09958849,93962.0,93947.0,0.010644]
[1767663785309,0.09958849,93962.0,93949.0,0.010644]
[1767663785501,5.208e-05,93961.0,93946.0,0.010644]
[1767663785703,0.19844431,93960.0,93943.0,0.010645]
[1767663786002,0.10050855,93960.0,93943.0,0.010645]
[1767663786207,0.10050855,93960.0,93945.0,0.010644]
[1767663786408,0.09048,93960.0,93942.0,0.00987518]
[1767663786798,0.09958849,93974.0,93956.0,0.00987518]
[1767663787005,0.09048,93973.0,93960.0,0.09793576]
[1767663787205,0.09048,93973.0,93955.0,0.09973403]
[1767663787401,0.09048,93972.0,93955.0,0.09973403]
[1767663787607,0.09048,93972.0,93953.0,0.00987518]
[1767663787804,0.10050855,93972.0,93953.0,0.00987518]
[1767663788516,0.10050855,93972.0,93957.0,0.010643]
[1767663789420,0.10961704,93981.0,93961.0,0.00987518]
[1767663789710,0.10961704,93981.0,93970.0,0.09793576]
[1767663789910,0.01064,93986.0,93962.0,0.10960921]
[1767663790316,0.09052,93985.0,93962.0,0.10960921]
[1767663790517,0.4,93985.0,93968.0,0.010642]
[1767663790705,0.09052,93984.0,93970.0,0.09793576]
[1767663790907,0.01064,93990.0,93974.0,0.09793576]
[1767663791117,0.09052,93989.0,93971.0,0.010642]
[1767663791416,0.010639,93992.0,93979.0,0.09793576]
[1767663791608,0.010639,93992.0,93971.0,0.10960921]
[1767663791811,0.01064,93986.0,93971.0,0.09973403]
[1767663792518,0.09574337,93989.0,93971.0,0.09973403]
[1767663792718,0.01002855,93989.0,93971.0,0.09973403]
[1767663793119,0.01064,93988.0,93971.0,0.09973403]
[1767663793321,0.01064,93988.0,93971.0,0.11037603]
[1767663793623,0.01064,93988.0,93971.0,0.09973403]
[1767663793813,0.01064,93986.0,93971.0,0.09973403]
[1767663794117,0.01002855,93989.0,93968.0,0.00987518]
[1767663794118,0.01002855,93988.0,93968.0,0.00987518]
[1767663794423,0.010642,93971.0,93954.0,0.09973403]
[1767663794612,0.09793576,93970.0,93954.0,0.09973403]
[1767663794814,0.09793576,93970.0,93954.0,0.10960921]
[1767663795025,0.010642,93971.0,93955.0,0.00987518]
[1767663795321,0.010642,93971.0,93955.0,0.10960921]
[1767663795517,0.010642,93969.0,93955.0,0.10960921]
[1767663796213,0.09052,93975.0,93950.0,0.010644]
[1767663796214,0.01002855,93966.0,93950.0,0.010644]
[1767663796407,0.01002855,93966.0,93950.0,0.10857976]
[1767663796616,0.10857776,93970.0,93950.0,0.10857976]
[1767663796920,0.010642,93970.0,93954.0,0.00987518]
[1767663797514,0.09052,93975.0,93958.0,0.10960921]
[1767663797719,0.09052,93975.0,93959.0,0.10960921]
[1767663798015,0.010641,93976.0,93959.0,0.10960921]
[1767663798016,0.010641,93976.0,93960.0,0.10781094]
[1767663798213,0.09052,93975.0,93961.0,0.10960921]
[1767663798616,0.010641,93976.0,93961.0,0.10960921]
[1767663798816,0.09052,93975.0,93961.0,0.10960921]
[1767663799716,0.010641,93976.0,93961.0,0.09973403]
[1767663800022,0.09052,93975.0,93960.0,0.09793576]
[1767663800319,0.09052,93975.0,93959.0,0.010643]
[1767663800616,0.010641,93974.0,93957.0,0.10960921]
[1767663801317,0.010642,93970.0,93957.0,0.10960921]
[1767663802514,0.010641,93973.0,93957.0,0.10960921]
[1767663803219,0.010642,93971.0,93957.0,0.10960921]
[1767663803417,0.010642,93964.0,93948.0,0.00987518]
[1767663803719,0.010642,93964.0,93949.0,0.010644]
[1767663804423,0.01002855,93969.0,93949.0,0.010644]
[1767663804916,0.010642,93971.0,93954.0,0.010643]
[1767663805115,0.09793576,93970.0,93956.0,0.010643]
[1767663805317,0.010642,93971.0,93956.0,0.010643]
[1767663805915,0.010642,93971.0,93956.0,0.12025221]
[1767663806113,0.010642,93972.0,93958.0,0.10960921]
[1767663806623,0.010642,93972.0,93958.0,0.09973403]
[1767663808420,0.09052,93971.0,93958.0,0.09973403]
[1767663809323,0.09052,93970.0,93958.0,0.09973403]
[1767663809819,0.010642,93972.0,93958.0,0.09973403]
[1767663810019,0.09052,93971.0,93958.0,0.09973403]
[1767663813326,0.010642,93970.0,93958.0,0.09973403]
[1767663814927,0.010642,93970.0,93956.0,0.010643]
[1767663815225,0.010642,93970.0,93955.0,0.010643]
[1767663815528,0.09052,93971.0,93957.0,0.010643]
[1767663815726,0.09052,93971.0,93959.0,0.010643]
[1767663816429,0.101162,93971.0,93955.0,0.010643]
[1767663816727,0.09052,93970.0,93957.0,0.010643]
[1767663816926,0.010641,93974.0,93957.0,0.010643]
[1767663817421,0.09052,93973.0,93957.0,0.010643]
[1767663817617,0.09052,93972.0,93957.0,0.010643]
[1767663817817,0.09052,93971.0,93957.0,0.010643]
[1767663818222,0.010642,93970.0,93956.0,0.10447223]
[1767663818524,0.09052,93971.0,93956.0,0.11511523]
[1767663819028,0.010641,93973.0,93958.0,0.010643]
[1767663819218,0.09052,93972.0,93958.0,0.010643]
[1767663819421,0.010642,93971.0,93956.0,0.10447223]
[1767663819831,0.010642,93969.0,93956.0,0.10447223]
[1767663820020,0.010642,93967.0,93956.0,0.09208625]
[1767663820214,0.010642,93967.0,93953.0,0.01238598]
[1767663821129,0.010642,93967.0,93952.0,0.010644]
[1767663823131,0.01253997,93970.0,93955.0,0.010643]
[1767663823332,0.11047573,93970.0,93955.0,0.010643]
[1767663823827,0.09793576,93970.0,93955.0,0.010643]
[1767663824026,0.010642,93971.0,93955.0,0.010643]
[1767663825432,0.010642,93971.0,93953.0,0.01238598]
[1767663826026,0.010642,93971.0,93953.0,0.10447223]
[1767663826227,0.010642,93969.0,93955.0,0.010643]
[1767663827436,0.09052,93972.0,93955.0,0.010643]
[1767663827437,0.101162,93972.0,93955.0,0.010643]
[1767663827639,0.010642,93970.0,93955.0,0.010643]
[1767663829140,0.010642,93968.0,93953.0,0.10447223]
[1767663829531,0.10305997,93972.0,93953.0,0.10447223]
[1767663830040,0.01253997,93971.0,93953.0,0.10447223]
[1767663830240,0.01253997,93971.0,93953.0,0.09208625]
[1767663830638,0.02318197,93971.0,93954.0,0.010643]
[1767663830837,0.01253997,93971.0,93954.0,0.010643]
[1767663832142,0.01253997,93971.0,93951.0,0.01238598]
[1767663832143,0.010642,93967.0,93951.0,0.010644]
[1767663832844,0.010642,93970.0,93953.0,0.010644]
[1767663834241,0.01253997,93971.0,93953.0,0.010644]
[1767663834543,0.010642,93968.0,93953.0,0.010644]
[1767663837045,0.01253997,93971.0,93953.0,0.010644]
[1767663838149,0.010642,93970.0,93955.0,0.010643]
[1767663839343,0.01253997,93971.0,93951.0,0.10643523]
[1767663839549,0.010642,93968.0,93951.0,0.11707923]
[1767663840751,0.010642,93968.0,93954.0,0.010643]
[1767663840953,0.10509084,93971.0,93951.0,0.09550303]
[1767663841159,0.010643,93960.0,93948.0,0.1061369]
[1767663841346,0.010643,93963.0,93949.0,0.1061369]
[1767663842054,0.010643,93961.0,93949.0,0.1061369]
[1767663842643,0.010643,93961.0,93950.0,0.01126197]
[1767663842847,0.010643,93961.0,93950.0,0.1061369]
[1767663843659,0.01123176,93962.0,93939.0,0.010645]
[1767663843851,0.010643,93957.0,93939.0,0.1167819]
[1767663844251,0.010643,93957.0,93941.0,0.010645]
[1767663844457,0.010643,93957.0,93941.0,0.1167819]
[1767663844649,0.010643,93960.0,93941.0,0.1167819]
[1767663844850,0.01123176,93962.0,93944.0,0.010645]
[1767663845151,0.010643,93961.0,93944.0,0.010645]
[1767663845652,0.09052,93965.0,93948.0,0.1061369]
[1767663845958,0.010642,93964.0,93948.0,0.1061369]
[1767663846650,0.010643,93962.0,93948.0,0.1061369]
[1767663846950,0.010643,93958.0,93943.0,0.09487493]
[1767663847358,0.010643,93958.0,93943.0,0.1061369]
[1767663848058,0.010643,93958.0,93944.0,0.01126197]
[1767663848452,0.010643,93958.0,93944.0,0.1061369]
[1767663848654,0.01123176,93963.0,93944.0,0.1061369]
[1767663848856,0.010643,93960.0,93944.0,0.1167819]
[1767663849663,0.01123176,93954.0,93928.0,0.09495733]
[1767663849861,0.010644,93946.0,93928.0,0.0107284]
[1767663850463,0.010644,93946.0,93929.0,0.10826618]
[1767663850853,0.01123176,93948.0,93929.0,0.10826618]
[1767663851059,0.010644,93948.0,93934.0,0.1061369]
[1767663851261,0.010644,93948.0,93936.0,0.09487493]
[1767663851463,0.010644,93948.0,93932.0,0.02190797]
[1767663851862,0.010644,93948.0,93932.0,0.01126197]
[1767663853274,0.010645,93946.0,93932.0,0.01126197]
[1767663853967,0.010645,93946.0,93930.0,0.09487493]
[1767663854165,0.010645,93945.0,93930.0,0.10552093]
[1767663854361,0.010645,93945.0,93933.0,0.1061369]
[1767663855377,0.010645,93945.0,93933.0,0.09487493]
[1767663857377,0.01182769,93946.0,93933.0,0.09487493]
[1767663857677,0.010644,93949.0,93933.0,0.09487493]
[1767663857875,0.010644,93947.0,93933.0,0.09487493]
[1767663858070,0.0226705,93947.0,93933.0,0.09487493]
[1767663858676,0.0120265,93947.0,93933.0,0.09487493]
[1767663858978,0.010644,93947.0,93933.0,0.09487493]
[1767663859174,0.01123176,93946.0,93929.0,0.00212928]
[1767663859374,0.01123176,93946.0,93929.0,2.8e-07]
[1767663859678,0.010645,93938.0,93929.0,2.8e-07]
[1767663859875,0.101165,93938.0,93929.0,2.8e-07]
[1767663860264,0.09052,93938.0,93929.0,2.8e-07]
[1767663862077,0.010645,93941.0,93929.0,2.8e-07]
[1767663862277,0.09052,93940.0,93929.0,2.8e-07]
[1767663862479,0.010645,93939.0,93929.0,2.8e-07]
[1767663863580,0.09052,93940.0,93929.0,2.8e-07]
[1767663864174,0.01123176,93939.0,93929.0,2.8e-07]
[1767663864372,0.01123176,93934.0,93917.0,0.060648]
[1767663864886,0.010646,93930.0,93917.0,0.05]
[1767663865368,8.24e-05,93929.0,93917.0,0.05]
[1767663865982,0.010647,93928.0,93917.0,0.05]
[1767663866278,8.24e-05,93929.0,93917.0,0.05]
[1767663866475,0.01123176,93928.0,93917.0,0.05]
[1767663866784,0.010647,93927.0,93909.0,0.1061369]
[1767663866982,0.010647,93927.0,93911.0,0.1061369]
[1767663867277,0.010647,93927.0,93911.0,0.09487493]
[1767663867873,0.01123176,93923.0,93900.0,0.01065]
[1767663868075,0.010648,93916.0,93900.0,0.01065]
[1767663868283,8.24e-05,93915.0,93900.0,0.01065]
[1767663868484,8.24e-05,93915.0,93900.0,0.02191197]
[1767663868779,8.24e-05,93915.0,93900.0,0.1061369]
[1767663869775,8.24e-05,93914.0,93900.0,0.09487493]
[1767663869974,0.010649,93908.0,93899.0,0.00212996]
[1767663870178,8.24e-05,93907.0,93886.0,0.01126197]
[1767663870383,0.01123176,93906.0,93884.0,0.09052]
[1767663870678,0.01123176,93906.0,93882.0,0.01126197]
[1767663870679,0.01065,93899.0,93883.0,0.01126197]
[1767663870881,8.24e-05,93898.0,93884.0,0.010651]
[1767663871077,8.24e-05,93898.0,93887.0,0.010651]
[1767663871777,0.426072,93941.0,93874.0,0.09052]
[1767663871778,0.010648,93914.0,93894.0,0.01050807]
[1767663872078,0.09056,93923.0,93906.0,0.01050807]
[1767663872282,0.09056,93922.0,93908.0,0.1055099]
[1767663873085,0.09056,93922.0,93909.0,0.01050807]
[1767663873285,0.09056,93922.0,93909.0,0.1055099]
[1767663873482,0.09056,93922.0,93912.0,0.010648]
[1767663873881,0.010646,93935.0,93916.0,0.1055099]
[1767663874285,0.010646,93933.0,93916.0,0.1055099]
[1767663874484,0.09056,93932.0,93916.0,0.1055099]
[1767663874679,0.010646,93933.0,93916.0,0.1055099]
[1767663874878,0.010646,93936.0,93919.0,0.010647]
[1767663875085,0.09056,93935.0,93921.0,0.1055099]
[1767663875284,0.09056,93937.0,93922.0,0.1055099]
[1767663875486,0.17560332,93938.0,93922.0,0.1055099]
[1767663875687,0.09056,93938.0,93923.0,0.010647]
[1767663875990,0.09056,93938.0,93929.0,0.01050807]
[1767663876185,0.09056,93938.0,93930.0,0.1055099]
[1767663876692,0.09056,93938.0,93930.0,0.09500183]
[1767663877878,0.010646,93929.0,93913.0,0.01050807]
[1767663878079,0.10580193,93931.0,93911.0,0.09500183]
[1767663878284,0.010647,93926.0,93908.0,0.02115707]
[1767663878488,0.010646,93929.0,93910.0,0.010648]
[1767663879294,0.010647,93927.0,93910.0,0.010648]
[1767663879889,0.010647,93924.0,93906.0,0.10565083]
[1767663880290,0.02090373,93924.0,93906.0,0.09500183]
[1767663880598,0.010647,93922.0,93904.0,0.010649]
[1767663880787,0.01025673,93921.0,93904.0,0.010649]
[1767663881188,0.01025673,93921.0,93888.0,0.530531]
[1767663881189,0.01025673,93915.0,93894.0,0.09500183]
[1767663881486,0.01025673,93914.0,93894.0,0.09500183]
[1767663882397,0.010648,93911.0,93894.0,0.09500183]
[1767663882894,0.010648,93911.0,93892.0,0.101211]
[1767663883091,0.010649,93909.0,93892.0,0.09056]
[1767663883297,0.010649,93907.0,93892.0,0.09056]
[1767663883498,0.010649,93910.0,93892.0,0.10121]
[1767663883796,0.010649,93908.0,93892.0,0.09056]
[1767663884297,0.010648,93911.0,93892.0,0.09056]
[1767663884497,0.010648,93911.0,93893.0,0.01065]
[1767663884700,0.01025673,93917.0,93897.0,0.1055099]
[1767663884894,0.0955452,93920.0,93898.0,0.1055099]
[1767663885295,0.010648,93913.0,93898.0,0.1055099]
[1767663886599,0.010648,93916.0,93898.0,0.1055099]
[1767663887300,0.010648,93916.0,93896.0,0.01065]
[1767663887301,0.010648,93916.0,93899.0,0.1161599]
[1767663887698,0.010648,93914.0,93898.0,0.1055099]
[1767663887999,0.01025673,93917.0,93900.0,0.1161599]
[1767663888602,0.01025673,93917.0,93900.0,0.21423634]
[1767663889499,0.01025673,93917.0,93902.0,0.1161589]
[1767663890699,0.01025673,93917.0,93902.0,0.1055099]
[1767663891900,0.09056,93926.0,93900.0,0.09807644]
[1767663891901,0.00212928,93929.0,93910.0,0.01050807]
[1767663892106,0.010647,93923.0,93911.0,0.01050807]
[1767663892607,0.010647,93923.0,93910.0,0.09500183]
[1767663892795,0.410647,93923.0,93910.0,0.09500183]
[1767663892991,0.410647,93923.0,93910.0,0.1055099]
[1767663892992,0.4,93923.0,93910.0,0.1055099]
[1767663893197,0.4,93923.0,93910.0,0.09500183]
[1767663893392,0.410647,93923.0,93910.0,0.09500183]
[1767663893595,0.0955452,93919.0,93894.0,0.01050807]
[1767663893799,0.09807644,93910.0,93897.0,0.01065]
[1767663894004,0.010648,93913.0,93898.0,0.01050807]
[1767663894200,0.010648,93916.0,93898.0,0.01050807]
[1767663894406,0.010648,93916.0,93899.0,0.01065]
[1767663894608,0.09056,93918.0,93903.0,0.010649]
[1767663894802,0.09056,93918.0,93904.0,0.00984191]
[1767663895006,0.09056,93918.0,93906.0,0.00984191]
[1767663896505,0.09056,93918.0,93905.0,0.09943723]
[1767663897112,0.09056,93918.0,93903.0,0.02049091]
[1767663897113,0.09056,93918.0,93907.0,0.00984191]
[1767663899215,0.0979268,93929.0,93911.0,0.00984191]
[1767663899216,0.010647,93925.0,93911.0,0.00984191]
[1767663899416,0.010647,93925.0,93907.0,0.010649]
[1767663899819,0.010647,93923.0,93907.0,0.010649]
[1767663900204,0.101207,93926.0,93910.0,0.09807644]
[1767663900411,0.00212928,93929.0,93915.0,0.010648]
[1767663900613,0.09056,93933.0,93919.0,0.09807644]
[1767663901006,0.010645,93938.0,93921.0,0.010647]
[1767663901318,0.09056,93937.0,93921.0,0.02328143]
[1767663902123,0.09056,93937.0,93923.0,0.010647]
[1767663902810,0.010645,93941.0,93927.0,0.11071087]
[1767663903010,0.010645,93941.0,93927.0,0.01263443]
[1767663903816,0.010645,93939.0,93919.0,0.010647]
[1767663904116,0.010646,93935.0,93919.0,0.010647]
[1767663904620,0.010646,93934.0,93916.0,0.01263443]
[1767663904921,0.010646,93932.0,93917.0,0.09056]
[1767663906122,0.010646,93932.0,93917.0,0.10319443]
[1767663906425,0.09246618,93935.0,93918.0,0.010648]
[1767663906613,0.10311218,93935.0,93918.0,0.010648]
[1767663907024,0.10311218,93935.0,93917.0,0.10319443]
[1767663907209,0.10311218,93935.0,93917.0,0.11384243]
[1767663908924,0.10311218,93935.0,93922.0,0.010647]
[1767663908925,0.09246618,93935.0,93922.0,0.010647]
[1767663909521,0.10303303,93943.0,93923.0,0.01263443]
[1767663909723,0.09056,93943.0,93930.0,0.09807644]
[1767663910525,0.09056,93943.0,93930.0,0.01263443]
[1767663910726,0.09056,93943.0,93925.0,0.09630456]
[1767663910727,0.010645,93942.0,93926.0,0.01263443]
[1767663911028,0.010645,93942.0,93931.0,0.01263443]
[1767663911421,0.010645,93942.0,93927.0,0.01263443]
[1767663913626,0.09056,93943.0,93927.0,0.01263443]
[1767663913827,0.09056,93950.0,93931.0,0.01263443]
[1767663914128,0.010644,93949.0,93932.0,0.01263443]
[1767663914324,0.010644,93949.0,93910.0,0.010648]
[1767663914325,0.01247303,93934.0,93912.0,0.01263443]
[1767663914624,0.11558521,93929.0,93911.0,0.09630456]
[1767663914930,0.10311218,93929.0,93910.0,0.11071087]
[1767663915131,0.10311218,93929.0,93911.0,0.01263443]
[1767663915329,0.010646,93929.0,93911.0,0.01263443]
[1767663916135,0.010646,93929.0,93911.0,0.02328243]
[1767663916733,0.010646,93929.0,93913.0,0.010648]
[1767663916937,0.010646,93929.0,93913.0,0.02328243]
[1767663918224,0.010646,93929.0,93913.0,0.01263443]
[1767663918628,0.10493921,93929.0,93909.0,0.09056]
[1767663918933,0.09807644,93920.0,93902.0,0.010649]
[1767663919234,0.010648,93919.0,93902.0,0.010649]
[1767663919823,0.010648,93919.0,93902.0,0.02328343]
[1767663920238,0.09807644,93920.0,93900.0,0.18863644]
[1767663920239,0.09807644,93920.0,93900.0,0.09056]
[1767663920424,0.010648,93917.0,93900.0,0.09056]
[1767663920624,0.10493921,93917.0,93900.0,0.09056]
[1767663920827,0.09807644,93910.0,93900.0,0.09056]
[1767663922039,0.010647,93926.0,93900.0,0.09056]
[1767663922040,0.010647,93925.0,93905.0,0.010649]
[1767663922347,0.09056,93924.0,93906.0,0.01263443]
[1767663922531,0.010647,93923.0,93906.0,0.01263443]
[1767663922830,0.09056,93924.0,93902.0,0.010649]
[1767663923040,0.09056,93924.0,93902.0,0.02328343]
[1767663924235,0.010647,93921.0,93902.0,0.02328343]
[1767663925030,0.09807644,93920.0,93902.0,0.02328343]
[1767663925435,0.09807644,93920.0,93904.0,0.010649]
[1767663925635,0.101207,93924.0,93904.0,0.010649]
[1767663926136,0.010647,93922.0,93903.0,0.010649]
[1767663926735,0.10493921,93918.0,93900.0,0.09807644]
[1767663927131,0.11558721,93916.0,93899.0,0.01124274]
[1767663927839,0.10493921,93916.0,93899.0,0.00059274]
[1767663928032,0.01247303,93915.0,93899.0,0.00059274]
[1767663928431,0.01247303,93915.0,93899.0,0.01124274]
[1767663929133,0.09246618,93916.0,93903.0,0.010649]
[1767663929332,0.09246618,93922.0,93905.0,0.010649]